[Event "36th German Seniors-ch-65 2024"]
[Site "Bad Wildungen"]
[Date "2024.08.25"]
[Round "2.21"]
[White "Steingrobe, Udo"]
[Black "Krueger, Erich"]
[Result "1-0"]
[ECO "E94"]
[WhiteElo "1965"]
[BlackElo "2085"]
[Annotator "NA RC"]
[PlyCount "79"]
[EventDate "2024.08.22"]
[EventType "swiss"]
[EventCountry "GER"]
[SourceTitle "playchess.com"]
[Source "ChessBase"]
[SourceQuality "1"]
[TimeControl "40/5400+30:1800+30"]

1. d4 {[%emt 0:00:22]} Nf6 {[%emt 0:00:17]} 2. c4 {[%emt 0:00:10]} g6 {[%emt 0:00:07]} 3. Nc3 {[%emt 0:00:10]} Bg7 {[%emt 0:00:06]} 4. e4 {[%emt 0:00:15]} d6 {[%emt 0:00:08]} 5. Nf3 {[%emt 0:00:31]} O-O {[%emt 0:00:12]} 6. Be2 {[%emt 0:00:21]} e5 {[%emt 0:00:08]} 7. O-O {[%emt 0:00:20]} Na6 {[%emt 0:00:08]} 8. Be3 {[%emt 0:01:03]} Qe7 {[%emt 0:00:39]} 9. d5 {[%emt 0:08:26]} Ng4 {[%emt 0:00:18]} 10. Bd2 {[%emt 0:01:01]} f5 {[%emt 0:02:43]} 11. Bg5 {[%emt 0:09:32]} Nf6 {[%emt 0:01:19]} 12. Nh4 {[%emt 0:05:11]} Qe8 {[%emt 0:10:01]} 13. exf5 {[%emt 0:08:55]} gxf5 {[%emt 0:00:45]} 14. g3 {[%emt 0:03:06]} Nc5 {[%emt 0:07:48]} 15. f3 {[%emt 0:05:24]} f4 {[%emt 0:05:27]} 16. b4 {[%emt 0:07:00]} Qh5 {[%emt 0:09:15]} 17. Bxf6 {[%emt 0:03:07]} Bxf6 {[%emt 0:03:23]} 18. bxc5 {[%emt 0:00:33]} fxg3 {[%emt 0:04:53]} 19. hxg3 {[%emt 0:00:26]} Bxh4 {[%emt 0:00:52]} 20. gxh4 {[%emt 0:07:38]} Rf4 {[%emt 0:08:09]} 21. Ne4 {[%emt 0:07:57]} Bh3 {[%emt 0:01:57]} 22. Kf2 {[%emt 0:09:48]} Bxf1 {[%emt 0:05:07]} 23. Qxf1 {[%emt 0:00:17]} Kh8 {[%emt 0:07:53]} 24. Qh3 {[%emt 0:00:35]} Raf8 {[%emt 0:02:01]} 25. Ke3 {[%emt 0:01:37]} Rxh4 {[%emt 0:01:50]} 26. Qe6 {[%emt 0:00:55]} Rh2 {[%emt 0:09:15]} 27. Rf1 {[%emt 0:00:34]} Qh6+ {[%emt 0:00:33]} 28. Kd3 {[%emt 0:05:33]} Qxe6 {[%emt 0:04:42]} 29. dxe6 {[%emt 0:00:04]} Rh6 {[%emt 0:02:39]} 30. cxd6 {[%emt 0:03:04]} Rxe6 {[%emt 0:03:20]} 31. c5 {[%emt 0:02:23]} cxd6 {[%emt 0:01:07]} 32. cxd6 {[%emt 0:00:11]} h5 {[%emt 0:02:10]} 33. Kc4 {[%emt 0:00:41]} h4 {[%emt 0:04:19]} 34. Kd5 {[%emt 0:00:10]} Rh6 {[%emt 0:00:12]} 35. Rh1 {[%emt 0:01:40]} h3 {[%emt 0:00:40]} 36. Rh2 {[%emt 0:00:08]} Rg8 {[%emt 0:01:02]} 37. Bf1 {[%emt 0:00:16]} Re8 {[%emt 0:02:19]} 38. Rxh3 {[%emt 0:00:14]} Rxh3 {[%emt 0:00:23]} 39. Bxh3 {[%emt 0:00:07]} Kg7 {[%emt 0:00:02]} 40. d7 {[%emt 0:10:45]} 1-0

[Event "36th German Seniors-ch-65 2024"]
[Site "Bad Wildungen"]
[Date "2024.08.25"]
[Round "3.1"]
[White "Chevelevitch, Evgueni"]
[Black "Krueger, Wolfgang"]
[Result "1/2-1/2"]
[ECO "B32"]
[WhiteElo "2334"]
[BlackElo "2061"]
[Annotator "RC"]
[PlyCount "74"]
[EventDate "2024.08.22"]
[EventType "swiss"]
[EventCountry "GER"]
[SourceTitle "playchess.com"]
[Source "ChessBase"]
[SourceQuality "1"]
[TimeControl "40/5400+30:1800+30"]

1. e4 {[%emt 0:00:09]} c5 {[%emt 0:00:13]} 2. Nf3 {[%emt 0:00:11]} Nc6 {[%emt 0:00:05]} 3. d4 {[%emt 0:00:16]} cxd4 {[%emt 0:00:06]} 4. Nxd4 {[%emt 0:00:02]} e5 {[%emt 0:00:12]} 5. Nb5 {[%emt 0:00:18]} a6 {[%emt 0:00:15]} 6. Nd6+ {[%emt 0:00:20]} Bxd6 {[%emt 0:00:07]} 7. Qxd6 {[%emt 0:00:03]} Qf6 {[%emt 0:00:01]} 8. Qxf6 {[%emt 0:01:30]} Nxf6 {[%emt 0:00:03]} 9. Nc3 {[%emt 0:00:09]} Nb4 {[%emt 0:00:48]} 10. Bd3 {[%emt 0:00:24]} h6 {[%emt 0:00:43]} 11. Bd2 {[%emt 0:04:51]} d6 {[%emt 0:05:07]} 12. Na4 {[%emt 0:03:56]} Nxd3+ {[%emt 0:08:20]} 13. cxd3 {[%emt 0:00:01]} b5 {[%emt 0:02:09]} 14. Nb6 {[%emt 0:00:56]} Rb8 {[%emt 0:00:08]} 15. Nxc8 {[%emt 0:00:05]} Rxc8 {[%emt 0:00:02]} 16. Ke2 {[%emt 0:00:26]} O-O {[%emt 0:06:17]} 17. Rhc1 {[%emt 0:01:23]} d5 {[%emt 0:07:34]} 18. f3 {[%emt 0:00:39]} dxe4 {[%emt 0:02:12]} 19. dxe4 {[%emt 0:01:12]} Nd7 {[%emt 0:10:51]} 20. Bc3 {[%emt 0:11:46]} Rfe8 {[%emt 0:09:58]} 21. Rd1 {[%emt 0:02:11]} Nb6 {[%emt 0:07:06]} 22. Bb4 {[%emt 0:10:19]} Rc2+ {[%emt 0:06:01]} 23. Rd2 {[%emt 0:00:11]} Rxd2+ {[%emt 0:00:42]} 24. Bxd2 {[%emt 0:00:06]} Rc8 {[%emt 0:08:20]} 25. b3 {[%emt 0:03:02]} f6 {[%emt 0:04:47]} 26. Be3 {[%emt 0:01:02]} Rc6 {[%emt 0:02:08]} 27. Rd1 {[%emt 0:02:44]} Kf7 {[%emt 0:07:25]} 28. Bxb6 {[%emt 0:03:39]} Rxb6 {[%emt 0:00:01]} 29. Rd7+ {[%emt 0:00:10]} Kf8 {[%emt 0:03:05]} 30. g3 {[%emt 0:03:48]} Rc6 {[%emt 0:01:09]} 31. Kd2 {[%emt 0:00:14]} b4 {[%emt 0:03:10]} 32. Rb7 {[%emt 0:05:22]} a5 {[%emt 0:01:59]} 33. Rb5 {[%emt 0:01:59]} Rc3 {[%emt 0:02:21]} 34. Rxa5 {[%emt 0:17:09]} Rxf3 {[%emt 0:00:10]} 35. Ke2 {[%emt 0:01:34]} Rc3 {[%emt 0:00:22]} 36. Kd2 {[%emt 0:00:41]} Rf3 {[%emt 0:00:09]} 37. Ke2 {[%emt 0:00:19]} Rc3 1/2-1/2

[Event "36th German Seniors-ch-65 2024"]
[Site "Bad Wildungen"]
[Date "2024.08.25"]
[Round "3.2"]
[White "Klundt, Klaus"]
[Black "Huettemann, Karl-Heinz"]
[Result "1-0"]
[ECO "B80"]
[WhiteElo "2264"]
[BlackElo "2037"]
[Annotator "RC"]
[PlyCount "69"]
[EventDate "2024.08.22"]
[EventType "swiss"]
[EventCountry "GER"]
[SourceTitle "playchess.com"]
[Source "ChessBase"]
[SourceQuality "1"]
[TimeControl "40/5400+30:1800+30"]

1. e4 {[%emt 0:00:02]} c5 {[%emt 0:00:08]} 2. Nf3 {[%emt 0:00:12]} e6 {[%emt 0:00:19]} 3. d4 {[%emt 0:00:15]} cxd4 {[%emt 0:00:03]} 4. Nxd4 {[%emt 0:00:03]} Nf6 {[%emt 0:00:28]} 5. Nc3 {[%emt 0:00:09]} d6 {[%emt 0:00:22]} 6. Be3 {[%emt 0:01:15]} a6 {[%emt 0:00:40]} 7. f3 {[%emt 0:00:29]} Qc7 {[%emt 0:01:02]} 8. g4 {[%emt 0:00:30]} Nc6 {[%emt 0:02:31]} 9. g5 {[%emt 0:01:31]} Nd7 {[%emt 0:00:02]} 10. Qd2 {[%emt 0:00:28]} Nde5 {[%emt 0:04:25]} 11. Be2 {[%emt 0:00:41]} Nxd4 {[%emt 0:00:53]} 12. Bxd4 {[%emt 0:04:38]} b5 {[%emt 0:03:59]} 13. O-O-O {[%emt 0:03:16]} Bd7 {[%emt 0:02:50]} 14. f4 {[%emt 0:17:57]} Nc6 {[%emt 0:04:12]} 15. Be3 {[%emt 0:11:33]} Be7 {[%emt 0:01:09]} 16. h4 {[%emt 0:00:20]} g6 {[%emt 0:35:03]} 17. h5 {[%emt 0:00:55]} Rf8 {[%emt 0:00:23]} 18. hxg6 {[%emt 0:03:46]} hxg6 {[%emt 0:00:01]} 19. Kb1 {[%emt 0:01:38]} Rb8 {[%emt 0:03:09]} 20. Bd3 {[%emt 0:00:57]} Na5 {[%emt 0:04:58]} 21. Bd4 {[%emt 0:02:23]} b4 {[%emt 0:01:28]} 22. Ne2 {[%emt 0:00:16]} e5 {[%emt 0:00:14]} 23. Be3 {[%emt 0:00:33]} Bb5 {[%emt 0:03:07]} 24. f5 {[%emt 0:02:09]} Rg8 {[%emt 0:01:37]} 25. b3 {[%emt 0:03:16]} Nc6 {[%emt 0:01:03]} 26. Bxb5 {[%emt 0:00:53]} Rxb5 {[%emt 0:00:09]} 27. c4 {[%emt 0:00:25]} Rb8 {[%emt 0:01:58]} 28. Rh7 {[%emt 0:00:34]} Nd8 {[%emt 0:01:09]} 29. Ng3 {[%emt 0:07:25]} Qc6 {[%emt 0:00:44]} 30. Qd5 {[%emt 0:01:02]} Qxd5 {[%emt 0:01:57]} 31. exd5 {[%emt 0:00:10]} gxf5 {[%emt 0:07:52]} 32. Nxf5 {[%emt 0:00:23]} Kd7 {[%emt 0:00:04]} 33. Nh6 {[%emt 0:06:06]} Rg6 {[%emt 0:04:02]} 34. Rf1 {[%emt 0:01:41]} Bxg5 {[%emt 0:10:03]} 35. Bxg5 {[%emt 0:01:27]} 1-0

[Event "36th German Seniors-ch-65 2024"]
[Site "Bad Wildungen"]
[Date "2024.08.25"]
[Round "3.3"]
[White "Matthey, Harald"]
[Black "Juhnke, Juergen"]
[Result "1-0"]
[ECO "B23"]
[WhiteElo "2062"]
[BlackElo "2259"]
[Annotator "RC"]
[PlyCount "89"]
[EventDate "2024.08.22"]
[EventType "swiss"]
[EventCountry "GER"]
[SourceTitle "playchess.com"]
[Source "ChessBase"]
[SourceQuality "1"]
[TimeControl "40/5400+30:1800+30"]

1. e4 {[%emt 0:00:04]} c5 {[%emt 0:00:05]} 2. Nc3 {[%emt 0:00:12]} d6 {[%emt 0:00:15]} 3. d4 {[%emt 0:02:00]} cxd4 {[%emt 0:00:15]} 4. Qxd4 {[%emt 0:00:12]} Nc6 {[%emt 0:00:39]} 5. Qd2 {[%emt 0:00:16]} g6 {[%emt 0:02:15]} 6. b3 {[%emt 0:00:39]} Bh6 {[%emt 0:02:34]} 7. f4 {[%emt 0:00:12]} e5 {[%emt 0:05:18]} 8. Nb5 {[%emt 0:06:15]} Bxf4 {[%emt 1:23:09]} 9. Qxd6 {[%emt 1:25:10]} Qxd6 {[%emt 0:00:00]} 10. Nxd6+ {[%emt 0:00:00]} Kf8 {[%emt 0:00:00]} 11. Ba3 {[%emt 0:00:00]} Nge7 {[%emt 0:00:00]} 12. Nf3 {[%emt 0:00:00]} Kg7 {[%emt 0:00:00]} 13. Bc4 {[%emt 0:00:00]} f6 {[%emt 0:00:00]} 14. Rd1 {[%emt 0:00:00]} Rd8 {[%emt 0:00:00]} 15. Kf2 {[%emt 0:00:00]} a6 {[%emt 0:00:00]} 16. g3 {[%emt 0:00:00]} Bh6 {[%emt 0:00:00]} 17. Nxc8 {[%emt 0:00:00]} Raxc8 {[%emt 0:00:00]} 18. Bd6 {[%emt 0:00:00]} Kf8 {[%emt 0:00:00]} 19. Be6 {[%emt 0:00:00]} Ra8 {[%emt 0:00:00]} 20. Bc7 {[%emt 0:00:00]} Rxd1 {[%emt 0:00:00]} 21. Rxd1 {[%emt 0:00:00]} Ke8 {[%emt 0:00:00]} 22. Bb6 {[%emt 0:00:00]} Nb4 {[%emt 0:00:00]} 23. Rd7 {[%emt 0:00:00]} Nxa2 {[%emt 0:00:00]} 24. Bc5 {[%emt 0:00:00]} Bf8 {[%emt 0:00:00]} 25. Rxb7 {[%emt 0:00:00]} Nc3 {[%emt 0:00:00]} 26. Nd2 {[%emt 0:00:36]} f5 {[%emt 0:00:00]} 27. exf5 {[%emt 0:01:31]} gxf5 {[%emt 0:00:00]} 28. Bd7+ {[%emt 0:00:33]} Kf7 {[%emt 0:00:00]} 29. Bxf5 {[%emt 0:00:18]} Kf6 {[%emt 0:00:00]} 30. Bxh7 {[%emt 0:01:17]} Ned5 {[%emt 0:00:00]} 31. Bxf8 {[%emt 0:01:59]} Rxf8 {[%emt 0:00:00]} 32. Ne4+ {[%emt 0:00:35]} Nxe4+ {[%emt 0:00:00]} 33. Bxe4 {[%emt 0:00:03]} Kg5+ {[%emt 0:00:00]} 34. Ke2 {[%emt 0:01:32]} Nc3+ {[%emt 0:00:00]} 35. Kd3 {[%emt 0:00:34]} Nxe4 {[%emt 0:00:00]} 36. Kxe4 {[%emt 0:00:02]} Rf2 {[%emt 0:00:00]} 37. h4+ {[%emt 0:00:14]} Kg4 {[%emt 0:00:08]} 38. Rg7+ {[%emt 0:00:12]} Kh3 {[%emt 0:00:17]} 39. c4 {[%emt 0:00:46]} Rb2 {[%emt 0:00:17]} 40. h5 {[%emt 0:01:42]} Rxb3 {[%emt 0:03:40]} 41. h6 {[%emt 0:30:13]} Rb6 {[%emt 0:30:09]} 42. h7 {[%emt 0:00:10]} Rh6 {[%emt 0:00:05]} 43. Kxe5 {[%emt 0:00:18]} a5 {[%emt 0:00:17]} 44. g4 {[%emt 0:00:41]} a4 {[%emt 0:00:15]} 45. Kd4 {[%emt 0:00:38]} 1-0

[Event "36th German Seniors-ch-65 2024"]
[Site "Bad Wildungen"]
[Date "2024.08.25"]
[Round "3.4"]
[White "Blab, Ludwig"]
[Black "Rosen, Bernd"]
[Result "0-1"]
[ECO "A22"]
[WhiteElo "2026"]
[BlackElo "2245"]
[Annotator "ChessBase"]
[PlyCount "70"]
[EventDate "2024.08.22"]
[EventType "swiss"]
[EventCountry "GER"]
[SourceTitle "playchess.com"]
[Source "ChessBase"]
[SourceQuality "1"]
[TimeControl "40/5400+30:1800+30"]

1. c4 {[%emt 0:00:07]} e5 {[%emt 0:00:12]} 2. Nc3 {[%emt 0:00:11]} Nf6 {[%emt 0:00:09]} 3. g3 {[%emt 0:00:31]} Bb4 {[%emt 0:00:11]} 4. Qc2 {[%emt 0:04:48]} O-O {[%emt 0:02:13]} 5. Bg2 {[%emt 0:00:22]} Nc6 {[%emt 0:00:52]} 6. a3 {[%emt 0:02:37]} Bxc3 {[%emt 0:01:49]} 7. Qxc3 {[%emt 0:00:27]} d5 {[%emt 0:00:17]} 8. cxd5 {[%emt 0:03:25]} Nxd5 {[%emt 0:00:11]} 9. Qc5 {[%emt 0:05:40]} Be6 {[%emt 0:11:56]} 10. Nf3 {[%emt 0:00:44]} Qd6 {[%emt 0:14:06]} 11. Qxd6 {[%emt 0:04:05]} cxd6 {[%emt 0:00:03]} 12. d3 {[%emt 0:00:16]} Rac8 {[%emt 0:11:17]} 13. Bd2 {[%emt 0:01:44]} Nb6 {[%emt 0:07:17]} 14. Rc1 {[%emt 0:02:14]} f6 {[%emt 0:01:35]} 15. O-O {[%emt 0:00:51]} d5 {[%emt 0:00:42]} 16. e3 {[%emt 0:10:48]} Rfd8 {[%emt 0:04:12]} 17. d4 {[%emt 0:06:30]} e4 {[%emt 0:03:29]} 18. Ne1 {[%emt 0:00:24]} Nc4 {[%emt 0:00:54]} 19. Bc3 {[%emt 0:04:27]} N6a5 {[%emt 0:03:15]} 20. Nc2 {[%emt 0:03:50]} Nb3 {[%emt 0:00:23]} 21. Rcd1 {[%emt 0:00:12]} Nxb2 {[%emt 0:01:20]} 22. Rb1 {[%emt 0:01:31]} Nd2 {[%emt 0:06:09]} 23. Bxd2 {[%emt 0:02:36]} Rxc2 {[%emt 0:00:04]} 24. Bb4 {[%emt 0:00:45]} Rdc8 {[%emt 0:01:53]} 25. h3 {[%emt 0:00:38]} b6 {[%emt 0:00:29]} 26. g4 {[%emt 0:00:38]} a5 {[%emt 0:03:49]} 27. Bd6 {[%emt 0:00:36]} R8c6 {[%emt 0:00:47]} 28. Bg3 {[%emt 0:00:14]} Nc4 {[%emt 0:01:45]} 29. Ra1 {[%emt 0:00:59]} Nd2 {[%emt 0:01:14]} 30. Rfd1 {[%emt 0:01:21]} b5 {[%emt 0:01:16]} 31. Bf1 {[%emt 0:01:01]} b4 {[%emt 0:01:25]} 32. Bb5 {[%emt 0:00:56]} Rc8 {[%emt 0:01:08]} 33. axb4 {[%emt 0:01:10]} axb4 {[%emt 0:00:06]} 34. Bd6 {[%emt 0:09:14]} b3 {[%emt 0:00:16]} 35. Ba4 {[%emt 0:19:54]} b2 {[%emt 0:02:13]} 0-1

[Event "36th German Seniors-ch-65 2024"]
[Site "Bad Wildungen"]
[Date "2024.08.25"]
[Round "3.5"]
[White "Buchal, Stephan"]
[Black "Kierzek, Mira"]
[Result "1-0"]
[ECO "A20"]
[WhiteElo "2215"]
[BlackElo "2007"]
[Annotator "RC"]
[PlyCount "65"]
[EventDate "2024.08.22"]
[EventType "swiss"]
[EventCountry "GER"]
[SourceTitle "playchess.com"]
[Source "ChessBase"]
[SourceQuality "1"]
[TimeControl "40/5400+30:1800+30"]

1. c4 {[%emt 0:00:14]} e5 {[%emt 0:00:10]} 2. g3 {[%emt 0:00:09]} c6 {[%emt 0:00:34]} 3. Nf3 {[%emt 0:00:36]} e4 {[%emt 0:00:26]} 4. Nd4 {[%emt 0:00:07]} d5 {[%emt 0:00:49]} 5. cxd5 {[%emt 0:00:13]} Qxd5 {[%emt 0:00:20]} 6. Nc2 {[%emt 0:00:37]} Nf6 {[%emt 0:01:54]} 7. Nc3 {[%emt 0:00:32]} Qe5 {[%emt 0:00:26]} 8. Bg2 {[%emt 0:04:41]} Na6 {[%emt 0:02:21]} 9. Ne3 {[%emt 0:07:32]} Bb4 {[%emt 0:09:42]} 10. Qc2 {[%emt 0:04:49]} Bxc3 {[%emt 0:03:53]} 11. bxc3 {[%emt 0:09:03]} O-O {[%emt 0:08:05]} 12. Bb2 {[%emt 0:06:41]} Re8 {[%emt 0:06:12]} 13. c4 {[%emt 0:05:13]} Qe6 {[%emt 0:05:09]} 14. O-O {[%emt 0:02:56]} Nc5 {[%emt 0:06:21]} 15. d4 {[%emt 0:02:45]} exd3 {[%emt 0:06:11]} 16. exd3 {[%emt 0:00:13]} Bd7 {[%emt 0:02:37]} 17. Rfe1 {[%emt 0:11:57]} Rad8 {[%emt 0:07:08]} 18. d4 {[%emt 0:12:59]} Nce4 {[%emt 0:03:45]} 19. Rab1 {[%emt 0:05:06]} Bc8 {[%emt 0:05:11]} 20. Qa4 {[%emt 0:04:42]} a6 {[%emt 0:06:17]} 21. d5 {[%emt 0:04:58]} cxd5 {[%emt 0:09:20]} 22. Nxd5 {[%emt 0:04:41]} Qf5 {[%emt 0:10:26]} 23. f3 {[%emt 0:08:47]} Nd6 {[%emt 0:01:56]} 24. Rxe8+ {[%emt 0:00:36]} Rxe8 {[%emt 0:00:36]} 25. Qxe8+ {[%emt 0:00:08]} Nfxe8 {[%emt 0:00:44]} 26. Ne7+ {[%emt 0:00:06]} Kf8 {[%emt 0:00:47]} 27. Nxf5 {[%emt 0:00:02]} Bxf5 {[%emt 0:00:09]} 28. Rc1 {[%emt 0:00:11]} f6 {[%emt 0:00:44]} 29. c5 {[%emt 0:00:33]} Nb5 {[%emt 0:00:21]} 30. f4 {[%emt 0:00:27]} Bc8 {[%emt 0:00:41]} 31. a4 {[%emt 0:01:24]} Na7 {[%emt 0:00:33]} 32. c6 {[%emt 0:02:27]} bxc6 {[%emt 0:00:12]} 33. Bd4 {[%emt 0:00:10]} 1-0

[Event "36th German Seniors-ch-65 2024"]
[Site "Bad Wildungen"]
[Date "2024.08.25"]
[Round "3.6"]
[White "Hartlieb, Juergen"]
[Black "Okrajek, Alexander"]
[Result "1/2-1/2"]
[ECO "E61"]
[WhiteElo "2013"]
[BlackElo "2172"]
[Annotator "RC"]
[PlyCount "38"]
[EventDate "2024.08.22"]
[EventType "swiss"]
[EventCountry "GER"]
[SourceTitle "playchess.com"]
[Source "ChessBase"]
[SourceQuality "1"]
[TimeControl "40/5400+30:1800+30"]

1. Nf3 {[%emt 0:00:10]} Nf6 {[%emt 0:00:58]} 2. e3 {[%emt 0:01:15]} g6 {[%emt 0:04:18]} 3. d4 {[%emt 0:01:24]} Bg7 {[%emt 0:00:15]} 4. c4 {[%emt 0:04:26]} d6 {[%emt 0:01:02]} 5. Nc3 {[%emt 0:01:26]} O-O {[%emt 0:00:51]} 6. Be2 {[%emt 0:00:58]} c6 {[%emt 0:03:39]} 7. O-O {[%emt 0:01:42]} a6 {[%emt 0:02:48]} 8. b3 {[%emt 0:07:03]} b5 {[%emt 0:02:44]} 9. a3 {[%emt 0:01:53]} Nbd7 {[%emt 0:02:35]} 10. Qc2 {[%emt 0:09:37]} Rb8 {[%emt 0:05:38]} 11. b4 {[%emt 0:06:29]} bxc4 {[%emt 0:07:58]} 12. Bxc4 {[%emt 0:00:08]} a5 {[%emt 0:01:08]} 13. Rb1 {[%emt 0:06:55]} axb4 {[%emt 0:02:24]} 14. axb4 {[%emt 0:00:56]} Nb6 {[%emt 0:03:22]} 15. Bd3 {[%emt 0:01:13]} Nfd5 {[%emt 0:04:54]} 16. Bd2 {[%emt 0:05:31]} Bg4 {[%emt 0:03:57]} 17. Rfc1 {[%emt 0:04:40]} Bxf3 {[%emt 0:04:38]} 18. gxf3 {[%emt 0:00:04]} Qd7 {[%emt 0:01:41]} 19. b5 {[%emt 0:12:06]} Ra8 {[%emt 0:45:10]} 1/2-1/2

[Event "36th German Seniors-ch-65 2024"]
[Site "Bad Wildungen"]
[Date "2024.08.25"]
[Round "3.7"]
[White "Podat, Vladimir"]
[Black "Zuehlke, Burkhard"]
[Result "1/2-1/2"]
[ECO "B08"]
[WhiteElo "2157"]
[BlackElo "1999"]
[Annotator "RC"]
[PlyCount "51"]
[EventDate "2024.08.22"]
[EventType "swiss"]
[EventCountry "GER"]
[SourceTitle "playchess.com"]
[Source "ChessBase"]
[SourceQuality "1"]
[TimeControl "40/5400+30:1800+30"]

1. e4 {[%emt 0:00:09]} d6 {[%emt 0:00:08]} 2. d4 {[%emt 0:00:10]} Nf6 {[%emt 0:00:08]} 3. Nc3 {[%emt 0:00:06]} g6 {[%emt 0:00:08]} 4. Nf3 {[%emt 0:00:14]} Bg7 {[%emt 0:00:22]} 5. Be3 {[%emt 0:00:11]} c6 {[%emt 0:01:58]} 6. Qd2 {[%emt 0:00:56]} O-O {[%emt 0:06:29]} 7. Bh6 {[%emt 0:05:45]} b5 {[%emt 1:24:47]} 8. Bd3 {[%emt 0:00:53]} Qc7 {[%emt 0:00:00]} 9. h4 {[%emt 0:07:44]} Bxh6 {[%emt 0:00:00]} 10. Qxh6 {[%emt 0:00:20]} Ng4 {[%emt 0:00:00]} 11. Qd2 {[%emt 0:05:15]} e5 {[%emt 0:00:00]} 12. dxe5 {[%emt 0:03:56]} dxe5 {[%emt 0:00:00]} 13. h5 {[%emt 0:00:26]} Qe7 {[%emt 0:00:00]} 14. hxg6 {[%emt 0:05:13]} fxg6 {[%emt 0:00:00]} 15. Bxb5 {[%emt 0:19:35]} cxb5 {[%emt 0:00:00]} 16. Qd5+ {[%emt 0:00:01]} Be6 {[%emt 0:00:00]} 17. Qxa8 {[%emt 0:00:01]} Qc5 {[%emt 0:00:00]} 18. O-O {[%emt 0:00:25]} Nc6 {[%emt 0:00:00]} 19. Qb7 {[%emt 0:00:06]} Bc4 {[%emt 0:00:00]} 20. Nd5 {[%emt 0:01:11]} Bxf1 {[%emt 0:00:00]} 21. Rxf1 {[%emt 0:00:05]} Nd4 {[%emt 0:00:00]} 22. Ng5 {[%emt 0:03:15]} Ne2+ {[%emt 0:00:00]} 23. Kh1 {[%emt 0:00:15]} Ng3+ {[%emt 0:00:00]} 24. Kg1 {[%emt 0:00:04]} Ne2+ {[%emt 0:00:00]} 25. Kh1 {[%emt 0:00:02]} Ng3+ {[%emt 0:00:00]} 26. Kg1 {[%emt 0:00:01]} 1/2-1/2

[Event "36th German Seniors-ch-65 2024"]
[Site "Bad Wildungen"]
[Date "2024.08.25"]
[Round "3.8"]
[White "Gollasch, Theo-Heinz"]
[Black "Gruzmann, Boris"]
[Result "1/2-1/2"]
[ECO "E63"]
[WhiteElo "2006"]
[BlackElo "2167"]
[Annotator "RC"]
[PlyCount "135"]
[EventDate "2024.08.22"]
[EventType "swiss"]
[EventCountry "GER"]
[SourceTitle "playchess.com"]
[Source "ChessBase"]
[SourceQuality "1"]
[TimeControl "40/5400+30:1800+30"]

1. Nf3 {[%emt 0:04:36]} d6 {[%emt 0:00:22]} 2. d4 {[%emt 0:00:08]} Nf6 {[%emt 0:00:13]} 3. g3 {[%emt 0:00:41]} g6 {[%emt 0:00:23]} 4. Bg2 {[%emt 0:00:13]} Bg7 {[%emt 0:00:11]} 5. c4 {[%emt 0:00:33]} O-O {[%emt 0:00:29]} 6. Nc3 {[%emt 0:00:07]} Nc6 {[%emt 0:01:18]} 7. O-O {[%emt 0:00:32]} a6 {[%emt 0:00:20]} 8. b3 {[%emt 0:02:15]} Rb8 {[%emt 0:00:26]} 9. Bb2 {[%emt 0:00:26]} b5 {[%emt 0:00:53]} 10. cxb5 {[%emt 0:00:45]} axb5 {[%emt 0:00:13]} 11. d5 {[%emt 0:01:23]} Na5 {[%emt 0:03:27]} 12. Nd4 {[%emt 0:03:36]} b4 {[%emt 0:02:41]} 13. Ncb5 {[%emt 0:06:48]} Ba6 {[%emt 0:07:20]} 14. Na7 {[%emt 0:00:30]} Bb7 {[%emt 0:10:20]} 15. e4 {[%emt 0:01:49]} Ra8 {[%emt 0:03:36]} 16. Nac6 {[%emt 0:03:51]} Bxc6 {[%emt 0:02:29]} 17. Nxc6 {[%emt 0:00:46]} Nxc6 {[%emt 0:00:12]} 18. dxc6 {[%emt 0:00:02]} e5 {[%emt 0:06:40]} 19. a4 {[%emt 0:02:35]} bxa3 {[%emt 0:00:32]} 20. Bxa3 {[%emt 0:00:09]} Ra6 {[%emt 0:00:57]} 21. Qc2 {[%emt 0:02:35]} Qa8 {[%emt 0:00:33]} 22. Bb2 {[%emt 0:00:34]} Qxc6 {[%emt 0:01:21]} 23. Qxc6 {[%emt 0:00:29]} Rxc6 {[%emt 0:00:10]} 24. Rfc1 {[%emt 0:00:19]} Rxc1+ {[%emt 0:07:21]} 25. Rxc1 {[%emt 0:03:57]} Rb8 {[%emt 0:02:08]} 26. Rxc7 {[%emt 0:04:41]} Rxb3 {[%emt 0:00:21]} 27. Rc8+ {[%emt 0:00:06]} Bf8 {[%emt 0:00:11]} 28. Bc1 {[%emt 0:00:36]} Kg7 {[%emt 0:04:47]} 29. f3 {[%emt 0:01:19]} Rb1 {[%emt 0:06:37]} 30. Bf1 {[%emt 0:00:52]} d5 {[%emt 0:00:56]} 31. Bg5 {[%emt 0:00:36]} Nd7 {[%emt 0:14:26]} 32. exd5 {[%emt 0:03:48]} Rd1 {[%emt 0:00:29]} 33. Rc1 {[%emt 0:06:33]} Rxc1 {[%emt 0:04:18]} 34. Bxc1 {[%emt 0:00:02]} Nb6 {[%emt 0:00:20]} 35. Bb2 {[%emt 0:01:45]} f6 {[%emt 0:00:13]} 36. Bd3 {[%emt 0:02:07]} Nxd5 {[%emt 0:00:16]} 37. Kf1 {[%emt 0:01:45]} Bc5 {[%emt 0:08:45]} 38. Bb1 {[%emt 0:01:08]} Bd4 {[%emt 0:01:10]} 39. Be4 {[%emt 0:05:59]} Nc7 {[%emt 0:05:51]} 40. Ba3 {[%emt 0:02:34]} f5 {[%emt 0:00:30]} 41. Bc6 {[%emt 0:30:56]} Kf6 {[%emt 0:31:07]} 42. Bd6 {[%emt 0:01:48]} Ne6 {[%emt 0:01:10]} 43. Bb7 {[%emt 0:01:31]} Bc5 {[%emt 0:00:51]} 44. Bb8 {[%emt 0:01:26]} Nd4 {[%emt 0:00:00]} 45. f4 {[%emt 0:00:00]} exf4 {[%emt 0:00:00]} 46. Bxf4 {[%emt 0:00:00]} Nc2 {[%emt 0:00:00]} 47. Bd2 {[%emt 0:00:00]} Ke5 {[%emt 0:00:00]} 48. Bc3+ {[%emt 0:00:00]} Bd4 {[%emt 0:00:00]} 49. Bd2 {[%emt 0:00:00]} Bb2 {[%emt 0:00:00]} 50. Bf4+ {[%emt 0:00:00]} Kd4 {[%emt 0:00:00]} 51. Bh6 {[%emt 0:00:00]} Kc5 {[%emt 0:00:00]} 52. Bc8 {[%emt 0:00:00]} Be5 {[%emt 0:03:08]} 53. Be6 {[%emt 0:00:00]} Kd6 {[%emt 0:01:42]} 54. Bg8 {[%emt 0:00:00]} Ke7 {[%emt 0:00:14]} 55. Bb3 {[%emt 0:00:00]} Nd4 {[%emt 0:00:27]} 56. Ba2 {[%emt 0:00:00]} Ne6 {[%emt 0:00:45]} 57. Bc1 {[%emt 0:00:00]} Kf6 {[%emt 0:00:20]} 58. Kg2 {[%emt 0:00:00]} Nc5 {[%emt 0:00:27]} 59. Bc4 {[%emt 0:00:00]} Ne4 {[%emt 0:00:49]} 60. Bd5 {[%emt 0:00:00]} Nc3 {[%emt 0:00:44]} 61. Bc4 {[%emt 0:00:00]} g5 {[%emt 0:00:46]} 62. Bd3 {[%emt 0:00:00]} h6 {[%emt 0:01:14]} 63. Bd2 {[%emt 0:00:00]} Ne4 {[%emt 0:00:10]} 64. Bc1 {[%emt 0:00:00]} Bd4 {[%emt 0:00:26]} 65. g4 {[%emt 0:00:00]} Nd6 {[%emt 0:01:25]} 66. gxf5 {[%emt 0:00:00]} Nxf5 {[%emt 0:00:07]} 67. Bxf5 {[%emt 0:00:00]} Kxf5 {[%emt 0:00:05]} 68. h4 {[%emt 0:00:00]} 1/2-1/2